bitfinex/quotes_SOLUSD_20240713
["timestamp","ask_amount","ask_price","bid_price","bid_amount"]
[1720863487577,4.9889,140.31,140.28,6.4045]
[1720863489593,4.9893,140.3,140.28,6.4045]
[1720863490096,4.989,140.31,140.28,6.4045]
[1720863490293,4.9887,140.32,140.28,6.4045]
[1720863491002,4.989,140.31,140.28,6.4045]
[1720863491795,4.9893,140.3,140.28,6.4045]
[1720863492299,4.9889,140.31,140.28,6.4045]
[1720863493595,22.4708,140.33,140.27,26.0918]
[1720863493798,45.0,140.32,140.27,10.0]
[1720863494002,4.99,140.28,140.27,10.0]
[1720863496490,4.9907,140.27,140.25,16.4045]
[1720863496801,4.9907,140.27,140.23,26.0918]
[1720863497407,4.9907,140.27,140.23,31.0835]
[1720863497583,4.9907,140.27,140.23,26.0918]
[1720863499013,4.9907,140.27,140.23,31.0835]
[1720863499515,4.9907,140.27,140.23,26.0918]
[1720863500814,20.0,140.3,140.23,10.0]
[1720863500815,4.9914,140.24,140.23,10.0]
[1720863501110,4.9914,140.24,140.2,10.0]
[1720863501805,4.9914,140.24,140.2,14.9928]
[1720863502109,4.9912,140.25,140.21,4.9924]
[1720863503105,4.9912,140.25,140.22,10.0]
[1720863504386,4.9907,140.26,140.22,14.9919]
[1720863504786,4.9907,140.26,140.22,10.0]
[1720863505100,4.9912,140.25,140.24,10.0]
[1720863505909,4.9912,140.25,140.22,10.0]
[1720863508012,4.9915,140.24,140.22,10.0]
[1720863508212,4.9917,140.23,140.22,10.0]
[1720863508602,4.9917,140.23,140.2,10.0]
[1720863509214,4.9915,140.24,140.2,10.0]
[1720863509404,4.9904,140.27,140.22,4.9918]
[1720863509616,4.9904,140.27,140.23,4.9916]
[1720863510797,4.9904,140.27,140.24,10.0]
[1720863512599,4.99,140.28,140.24,14.9914]
[1720863512803,4.99,140.28,140.24,10.0]
[1720863513219,4.9904,140.27,140.24,10.0]
[1720863513427,4.9909,140.26,140.24,10.0]
[1720863514709,12.4739,140.3,140.24,10.0]
[1720863514710,4.9904,140.27,140.24,10.0]
[1720863515212,4.9904,140.27,140.24,11.42598653]
[1720863515421,4.9904,140.27,140.26,10.0]
[1720863517337,4.991,140.25,140.24,10.0]
[1720863518807,4.991,140.25,140.22,10.0]
[1720863519340,4.9914,140.24,140.22,10.0]
[1720863519835,4.9912,140.25,140.22,10.0]
[1720863520225,4.9916,140.24,140.22,10.0]
[1720863521943,4.9916,140.24,140.2,25.4002]
[1720863523250,4.992,140.23,140.2,10.0]
[1720863525121,4.9915,140.24,140.2,14.9927]
[1720863528255,4.9915,140.24,140.2,10.0]
[1720863529652,4.9912,140.25,140.2,10.0]
[1720863529823,4.9912,140.25,140.2,14.9928]
[1720863530245,4.9914,140.24,140.2,14.9928]
[1720863530745,4.9914,140.24,140.2,10.0]
[1720863532126,4.9914,140.24,140.22,10.0]
[1720863532842,4.9917,140.23,140.22,10.0]
[1720863534258,4.9923,140.22,140.2,10.0]
[1720863534750,4.9913,140.25,140.21,15.4769]
[1720863534925,4.9913,140.25,140.21,20.4694]
[1720863535237,4.9914,140.24,140.21,15.4769]
[1720863536250,4.9914,140.24,140.22,10.0]
[1720863536736,4.9912,140.25,140.22,10.0]
[1720863539058,4.9915,140.24,140.22,10.0]
[1720863541235,4.9917,140.23,140.22,10.0]
[1720863543228,4.9921,140.22,140.2,10.0]
[1720863543734,4.9925,140.21,140.2,10.0]
[1720863544342,4.9925,140.21,140.18,16.4045]
[1720863545454,22.4778,140.25,140.18,16.4045]
[1720863545640,10.0,140.23,140.16,10.4277518]
[1720863545843,45.0,140.22,140.16,10.4277518]
[1720863546636,4.9932,140.19,140.16,10.4277518]
[1720863547042,4.9933,140.19,140.16,10.4277518]
[1720863549539,4.9936,140.18,140.16,10.4277518]
[1720863550143,4.9939,140.17,140.16,10.4277518]
[1720863550341,4.9939,140.17,140.16,0.4277518]
[1720863551351,49.9939,140.17,140.16,0.4277518]
[1720863551554,4.9939,140.17,140.16,0.4277518]
[1720863554943,49.9939,140.17,140.16,0.4277518]
[1720863555556,4.9939,140.17,140.16,0.4277518]
[1720863560564,49.9939,140.17,140.16,0.4277518]
[1720863561574,4.9939,140.17,140.16,0.4277518]
[1720863561762,4.9939,140.17,140.16,10.4277518]
[1720863562073,4.9934,140.19,140.16,10.4277518]
[1720863562249,4.9929,140.2,140.16,10.4277518]
[1720863562568,4.9929,140.2,140.16,38.0681518]
[1720863563049,4.9929,140.2,140.16,33.0741518]
[1720863563444,4.9929,140.2,140.18,10.0]
[1720863564368,4.9926,140.21,140.18,10.0]
[1720863564867,16.63241754,140.25,140.18,14.9935]
[1720863565051,4.9922,140.22,140.18,14.9935]
[1720863565645,16.63241754,140.25,140.18,10.0]
[1720863565949,4.9925,140.21,140.18,10.0]
[1720863566775,4.9925,140.21,140.2,10.0]
[1720863567478,4.9925,140.21,140.18,10.0]
[1720863567783,12.4798,140.23,140.18,10.0]
[1720863568273,4.9932,140.19,140.18,10.0]
[1720863568782,4.9936,140.18,140.16,33.0741518]
[1720863570247,4.9933,140.19,140.16,33.0741518]
[1720863572283,4.9929,140.2,140.16,50.5534518]
[1720863573375,7.14363127,140.23,140.17,4.9939]
[1720863574249,4.9925,140.21,140.18,10.0]
[1720863576066,4.9928,140.2,140.18,10.0]
[1720863578798,4.9932,140.19,140.18,10.0]
[1720863584217,10.0,140.26,140.18,10.0]
[1720863584497,4.9914,140.24,140.21,10.0]
[1720863584869,14.991,140.26,140.21,10.0]
[1720863585091,10.0,140.26,140.21,10.0]
[1720863585470,4.9913,140.25,140.21,10.0]
[1720863585768,10.0,140.26,140.21,10.0]
[1720863585769,4.9915,140.24,140.21,10.0]
[1720863585967,4.9918,140.23,140.21,10.0]
[1720863586995,4.9914,140.24,140.21,10.0]
[1720863588798,14.991,140.26,140.21,10.0]
[1720863589169,4.9911,140.25,140.21,10.0]
[1720863589587,4.9915,140.24,140.21,10.0]
[1720863589889,14.991,140.26,140.21,10.0]
[1720863590094,14.991,140.26,140.23,10.0]
[1720863590275,4.9912,140.25,140.21,10.0]
[1720863590490,4.9914,140.24,140.21,10.0]
[1720863594892,4.9919,140.23,140.21,10.0]
[1720863595194,4.9911,140.25,140.22,22.8259]
[1720863598020,4.9914,140.24,140.22,22.8259]
[1720863599170,4.9917,140.23,140.22,22.8259]
[1720863599386,4.9917,140.23,140.21,10.0]
[1720863600695,4.9922,140.22,140.19,32.8259]
[1720863601799,4.9925,140.21,140.19,16.1834]
[1720863601995,4.9925,140.21,140.19,6.1834]
[1720863603401,12.4771,140.26,140.19,16.1834]
[1720863603595,4.9919,140.23,140.19,16.1834]
[1720863605105,4.9921,140.22,140.19,16.1834]
[1720863606404,4.9925,140.21,140.19,16.1834]
[1720863608006,4.9922,140.22,140.19,16.1834]
[1720863613698,4.9916,140.24,140.19,21.1764]
[1720863614281,4.9916,140.24,140.21,10.0]
[1720863614480,4.9918,140.23,140.21,10.0]
[1720863615309,4.9921,140.22,140.21,10.0]
[1720863615807,4.9925,140.21,140.19,16.1834]
[1720863618221,4.9922,140.22,140.19,16.1834]
[1720863618418,13.02330492,140.26,140.19,16.1834]
[1720863618419,12.479,140.24,140.19,16.1834]
[1720863618619,45.0,140.23,140.19,16.1834]
[1720863619292,4.9928,140.2,140.19,16.1834]
[1720863622628,4.9926,140.21,140.19,16.1834]
[1720863625423,4.992,140.23,140.19,16.1834]
[1720863626123,20.0,140.25,140.19,16.1834]
[1720863626124,4.9923,140.22,140.19,16.1834]
[1720863626323,4.9925,140.21,140.19,16.1834]
[1720863627427,4.9922,140.22,140.19,16.1834]
[1720863628413,4.9926,140.21,140.19,10.0]
[1720863630524,57.8019,140.25,140.17,44.1202]
[1720863630720,22.4798,140.23,140.17,10.0]
[1720863631030,45.0,140.22,140.17,10.0]
[1720863632332,4.9929,140.2,140.17,10.0]
[1720863635418,4.9932,140.19,140.17,10.0]
[1720863636637,4.9929,140.2,140.17,10.0]
[1720863638637,4.9938,140.18,140.16,0.4277518]
[1720863639035,4.9939,140.17,140.16,0.4277518]
[1720863640420,49.9939,140.17,140.16,0.4277518]
[1720863640936,4.9939,140.17,140.16,0.4277518]
[1720863641319,49.9939,140.17,140.16,0.4277518]
[1720863642647,59.9939,140.17,140.16,0.4277518]
[1720863643522,67.485,140.17,140.11,10.0]
[1720863643722,67.485,140.17,140.1,15.5917]
[1720863643723,4.9955,140.13,140.1,15.5917]
[1720863644022,10.0,140.15,140.09,6.1297]
[1720863644220,4.996,140.12,140.09,6.1297]
[1720863644732,4.996,140.12,140.09,16.1297]
[1720863645236,4.996,140.11,140.09,6.1297]
[1720863645422,4.9967,140.09,140.07,25.5917]
[1720863645627,4.9967,140.09,140.07,15.5917]
[1720863645822,4.9965,140.1,140.07,15.5917]
[1720863646028,4.9965,140.1,140.07,25.5917]
[1720863646433,4.9968,140.09,140.07,25.5917]
[1720863647831,4.9965,140.1,140.07,25.5917]
[1720863648047,10.0,140.14,140.09,10.0]
[1720863648048,4.9961,140.11,140.09,10.0]
[1720863649127,4.9951,140.14,140.09,14.9966]
[1720863649327,4.9951,140.14,140.11,16.2002]
[1720863649638,4.9954,140.13,140.11,16.2002]
[1720863651219,4.995,140.14,140.11,16.2002]
[1720863652043,4.9954,140.13,140.11,16.2002]
[1720863652246,4.995,140.14,140.11,16.2002]
[1720863652422,12.4852,140.17,140.11,16.2002]
[1720863652423,4.9947,140.15,140.11,16.2002]
[1720863652946,4.9947,140.15,140.13,10.0]
[1720863654143,4.995,140.14,140.13,10.0]
[1720863655149,4.995,140.14,140.13,9.5]
[1720863655447,4.995,140.14,140.13,25.4884]
[1720863655649,4.994,140.17,140.13,25.4884]
[1720863655840,4.9938,140.18,140.15,9.5]
[1720863656729,4.9933,140.19,140.15,9.5]
[1720863656926,4.9933,140.19,140.17,9.5]
[1720863659649,4.9929,140.2,140.17,9.5]
[1720863659872,0.54620492,140.24,140.19,9.5]
[1720863660030,0.54620492,140.24,140.19,25.4884]
[1720863660428,4.9925,140.21,140.19,25.4884]
[1720863667061,4.9922,140.22,140.19,25.4884]
[1720863672662,0.54620492,140.24,140.19,25.4884]
[1720863672839,4.9935,140.19,140.17,9.5]
[1720863673037,10.0,140.23,140.15,31.9659]
[1720863673038,4.9935,140.18,140.15,31.9659]
[1720863673256,4.9935,140.18,140.17,9.5]
[1720863674256,4.9942,140.16,140.15,31.9659]
[1720863675068,4.9942,140.16,140.15,9.5]
[1720863675368,4.9939,140.17,140.15,9.5]
[1720863676144,4.9942,140.16,140.15,9.5]
[1720863678080,4.9942,140.16,140.13,9.5]
[1720863681075,4.994,140.17,140.13,9.5]
[1720863681248,4.9936,140.18,140.13,14.4952]
[1720863681455,4.9932,140.19,140.14,4.9949]
[1720863681882,4.9929,140.2,140.15,14.4945]
[1720863682072,4.9929,140.2,140.16,4.9942]
[1720863682481,4.9929,140.2,140.17,9.5]
[1720863682685,0.54620492,140.24,140.19,9.5]
[1720863683657,4.9918,140.23,140.21,9.5]
[1720863683853,0.54620492,140.24,140.18,4.9933]
[1720863684056,0.54620492,140.24,140.19,9.5]
[1720863684454,0.54620492,140.24,140.21,9.5]
[1720863685185,4.9921,140.22,140.21,9.5]
[1720863685985,4.9917,140.24,140.23,9.5]
[1720863686284,4.9918,140.23,140.21,9.5]
[1720863688585,4.9921,140.22,140.21,9.5]
[1720863706607,4.9925,140.21,140.19,9.5]
[1720863707209,4.9928,140.2,140.19,9.5]
[1720863708311,4.9926,140.21,140.19,9.5]
[1720863708919,4.9913,140.25,140.19,21.9828]
[1720863709113,12.79022483,140.26,140.21,9.5]
[1720863709317,4.992,140.23,140.21,9.5]
[1720863710817,4.9921,140.22,140.21,9.5]
[1720863711715,32.4779,140.25,140.19,9.5]
[1720863711716,4.9926,140.21,140.19,9.5]
[1720863712097,32.4779,140.25,140.19,9.5]
[1720863712901,32.4779,140.25,140.21,9.5]
[1720863713303,4.9922,140.22,140.21,9.5]
[1720863714001,4.9928,140.21,140.18,9.5]
[1720863714208,4.9928,140.21,140.2,9.5]
[1720863715324,4.9931,140.2,140.18,9.5]
[1720863716019,32.4779,140.25,140.2,9.5]
[1720863716219,4.9923,140.22,140.2,9.5]
[1720863717633,4.9925,140.21,140.2,9.5]
[1720863720022,4.9922,140.22,140.2,9.5]
[1720863720248,4.9925,140.21,140.2,9.5]
[1720863720727,4.9932,140.19,140.18,9.5]
[1720863721424,4.9935,140.18,140.17,22.4659]
[1720863721729,4.9939,140.17,140.16,9.5]
[1720863722127,4.9945,140.16,140.14,9.5]
[1720863722512,4.994,140.17,140.14,9.5]
[1720863722723,4.9944,140.16,140.13,15.6017]
[1720863723519,4.9944,140.16,140.15,9.5]
[1720863726924,10.0,140.18,140.13,15.6017]
[1720863726925,4.9947,140.15,140.13,15.6017]
[1720863728025,4.995,140.14,140.13,9.5]
[1720863728222,4.995,140.14,140.11,25.309]
[1720863730637,4.995,140.14,140.13,9.5]
[1720863730939,4.995,140.14,140.11,25.309]
[1720863731150,4.995,140.14,140.13,9.5]
[1720863731621,4.995,140.14,140.11,25.309]
[1720863732341,4.995,140.14,140.13,9.5]
[1720863732544,4.9947,140.15,140.13,9.5]
[1720863732944,4.995,140.14,140.13,9.5]
[1720863734544,4.9947,140.15,140.13,9.5]
[1720863734730,4.995,140.14,140.11,25.309]
[1720863735241,4.9947,140.15,140.13,9.5]
[1720863735439,12.4855,140.17,140.11,25.309]
[1720863735623,4.9951,140.14,140.11,25.309]
[1720863736019,4.9947,140.15,140.11,30.87425329]
[1720863736219,4.9947,140.15,140.13,9.5]
[1720863736419,4.9944,140.16,140.13,9.5]
[1720863737047,4.9947,140.15,140.13,9.5]
[1720863737421,4.995,140.14,140.13,9.5]
[1720863737623,4.995,140.14,140.11,25.309]
[1720863737840,4.995,140.14,140.13,9.5]
[1720863738144,7.46111578,140.21,140.15,26.0223]
[1720863738318,25.9019,140.24,140.19,9.5]
[1720863739033,10.54620492,140.24,140.17,14.4938]
[1720863739253,0.54620492,140.24,140.2,9.5]
[1720863739544,10.54620492,140.24,140.2,9.5]
[1720863739841,0.54620492,140.24,140.2,9.5]
[1720863742024,0.54620492,140.24,140.22,9.5]
[1720863742438,0.54620492,140.24,140.2,9.5]
[1720863743932,0.54620492,140.24,140.22,9.5]
[1720863750462,10.54620492,140.24,140.22,9.5]
[1720863750658,45.0,140.23,140.2,9.5]
[1720863751157,45.0,140.23,140.18,21.9833]
[1720863751551,45.0,140.23,140.2,9.5]
[1720863753642,45.0,140.23,140.18,21.9833]
[1720863753982,10.0,140.22,140.18,9.5]
[1720863754156,45.0,140.21,140.18,9.5]
[1720863770061,10.54620492,140.24,140.2,9.5]
[1720863771472,45.0,140.23,140.2,9.5]
[1720863779872,10.0,140.22,140.18,9.5]
[1720863780189,45.0,140.21,140.18,9.5]
[1720863780399,10.54620492,140.24,140.18,9.5]
[1720863780569,0.54620492,140.24,140.2,9.5]
[1720863785813,10.54620492,140.24,140.2,9.5]
[1720863786008,45.0,140.23,140.2,9.5]
[1720863789095,0.54620492,140.24,140.2,9.5]
[1720863794599,45.0,140.25,140.2,9.5]
[1720863794800,10.0,140.24,140.2,9.5]
[1720863795001,45.0,140.23,140.2,9.5]
[1720863795218,10.0,140.22,140.2,9.5]
[1720863795404,45.0,140.21,140.2,9.5]
[1720863795713,45.0,140.21,140.18,9.5]
[1720863798614,10.0,140.2,140.15,15.5393]
[1720863798823,45.0,140.19,140.15,9.5]
[1720863802309,10.0,140.18,140.15,9.5]
[1720863802616,45.0,140.17,140.15,9.5]
[1720863802821,45.0,140.17,140.13,17.4828]
[1720863804128,45.0,140.17,140.14,9.5]
[1720863804620,45.0,140.17,140.14,14.4949]
[1720863804809,45.0,140.17,140.16,9.5]
[1720863808423,45.0,140.17,140.13,9.5]
[1720863809037,45.0,140.17,140.16,9.5]
[1720863810323,45.0,140.17,140.14,9.5]
[1720863814429,45.0,140.17,140.12,31.4059]
[1720863816227,45.0,140.17,140.14,9.5]
[1720863835451,12.90048486,140.2,140.16,9.5]
[1720863835643,45.0,140.19,140.16,9.5]
[1720863838045,10.0,140.2,140.16,9.5]
[1720863838258,10.54620492,140.2,140.14,9.5]
[1720863838450,10.54620492,140.2,140.16,9.5]
[1720863839259,45.0,140.19,140.16,9.5]
[1720863840041,45.0,140.19,140.13,9.5]
[1720863840237,10.0,140.18,140.13,9.5]
[1720863840441,10.0,140.18,140.15,9.5]
[1720863842453,45.0,140.17,140.15,9.5]
[1720863842855,10.0,140.18,140.15,9.5]
[1720863847049,45.0,140.17,140.15,9.5]
[1720863847463,10.0,140.18,140.15,9.5]
[1720863850770,45.0,140.17,140.15,9.5]
[1720863851960,45.0,140.17,140.13,9.5]
[1720863853765,45.0,140.17,140.15,9.5]
[1720863854458,45.0,140.17,140.13,9.5]
[1720863857858,45.0,140.17,140.15,9.5]
[1720863860085,45.0,140.17,140.13,9.5]
[1720863860376,45.0,140.17,140.15,9.5]
[1720863860967,45.0,140.17,140.13,9.5]
[1720863861160,45.0,140.17,140.15,9.5]
[1720863865183,45.0,140.17,140.13,9.5]
[1720863866594,10.0,140.16,140.13,9.5]
[1720863866897,45.0,140.15,140.11,9.5]
[1720863868259,0.54620492,140.16,140.15,4.9946]
[1720863868489,0.54620492,140.16,140.12,21.9886]
[1720863869180,0.54620492,140.16,140.14,9.5]
[1720863869677,10.0,140.2,140.14,9.5]
[1720863869871,10.0,140.2,140.16,9.5]
[1720863869872,0.54620492,140.2,140.16,9.5]
[1720863870070,0.54620492,140.2,140.18,9.5]
[1720863870585,0.54620492,140.2,140.16,9.5]
[1720863873972,10.54620492,140.2,140.16,9.5]
[1720863874176,45.0,140.19,140.16,9.5]
[1720863875460,45.0,140.19,140.14,1.42695267]
[1720863875461,0.54620492,140.2,140.18,9.5]
[1720863878404,10.54620492,140.2,140.16,9.5]
[1720863878565,45.0,140.19,140.16,9.5]
[1720863883298,10.0,140.18,140.16,9.5]
[1720863883480,45.0,140.17,140.14,9.5]
[1720863890408,45.0,140.17,140.16,9.5]
[1720863895703,0.54620492,140.18,140.16,9.5]
[1720863905614,10.0,140.22,140.18,9.5]
[1720863905823,45.54620492,140.21,140.18,9.5]
[1720863909019,10.0,140.2,140.16,9.5]
[1720863909189,45.0,140.19,140.16,9.5]
[1720863914213,10.0,140.21,140.16,9.5]
[1720863914419,10.0,140.21,140.16,14.4939]
[1720863914719,10.0,140.21,140.18,9.5]
[1720863915597,45.0,140.2,140.18,9.5]
[1720863917110,45.0,140.2,140.16,9.5]
[1720863918633,45.54620492,140.2,140.16,9.5]
[1720863920236,10.0,140.19,140.16,9.5]
[1720863920424,45.0,140.18,140.16,9.5]
[1720863924632,0.54620492,140.2,140.16,9.5]
[1720863924832,45.54620492,140.2,140.16,9.5]
[1720863925243,45.54620492,140.2,140.18,9.5]
[1720863928720,0.54620492,140.2,140.18,9.5]
[1720863930132,45.54620492,140.2,140.18,9.5]
[1720863932531,2.80680223,140.23,140.18,9.5]
[1720863932738,45.54620492,140.23,140.18,9.5]
[1720863933849,10.0,140.22,140.18,9.5]
[1720863934033,45.0,140.21,140.18,9.5]
[1720863950050,45.0,140.21,140.17,22.2252]
[1720863950553,10.0,140.2,140.17,6.1543]
[1720863950758,45.0,140.19,140.17,6.1543]
[1720863951468,45.0,140.19,140.16,9.5]
[1720863960462,10.0,140.22,140.17,1.42671324]
[1720863960655,10.0,140.22,140.18,9.5]
[1720863961263,0.54620492,140.23,140.18,9.5]
[1720863962650,45.54620492,140.23,140.18,9.5]
[1720863966867,10.0,140.22,140.18,9.5]
[1720863967074,45.0,140.21,140.18,9.5]
[1720863969554,45.0,140.21,140.16,9.5]
[1720863970071,10.0,140.2,140.16,9.5]
[1720863970256,45.0,140.19,140.16,9.5]
[1720863971289,10.0,140.22,140.16,9.5]
[1720863971495,10.0,140.22,140.17,1.42670535]
[1720863971657,10.0,140.22,140.16,9.5]
[1720863971658,45.0,140.21,140.16,9.5]
[1720863971975,56.8452164,140.31,140.3,126.34110023]
[1720863972179,73.6952,140.31,140.3,126.34110023]
[1720863972361,94.29697144,140.31,140.3,122.04532066]
[1720863972560,94.29697144,140.31,140.3,115.16682067]
[1720863972753,94.29697144,140.31,140.3,110.02833002]
[1720863972951,94.29697144,140.31,140.3,107.88233002]
[1720863973154,94.29697144,140.31,140.3,103.82783002]
[1720863973400,94.29697144,140.31,140.3,101.21683002]
[1720863973585,94.29697144,140.31,140.3,93.99656884]
[1720863973866,94.29697144,140.31,140.3,85.64884648]
[1720863974064,139.29697144,140.31,140.3,83.5025853]
[1720863974270,139.29697144,140.31,140.3,79.5025853]
[1720863974555,139.29697144,140.31,140.3,75.5025853]
[1720863974762,142.06609408,140.31,140.3,68.89547769]
[1720863974983,142.06609408,140.31,140.3,66.89547769]
[1720863975156,142.06609408,140.31,140.3,62.89547769]
[1720863975351,142.06609408,140.31,140.3,57.75647769]
[1720863975556,142.06609408,140.31,140.3,55.75647769]
[1720863975761,142.06609408,140.31,140.3,53.60945155]
[1720863975981,142.06609408,140.31,140.3,49.60945155]
[1720863976292,142.06609408,140.31,140.3,45.60945155]
[1720863976463,142.06609408,140.31,140.3,43.60945155]
[1720863976663,142.06609408,140.31,140.3,41.60945155]
[1720863976865,142.06609408,140.31,140.3,37.60945155]
[1720863977077,142.06609408,140.31,140.3,35.60945155]
[1720863977287,142.06609408,140.31,140.3,33.60945155]
[1720863977591,142.06609408,140.31,140.3,29.46445155]
[1720863977784,142.06609408,140.31,140.3,18.43765101]
[1720863977990,142.06609408,140.31,140.3,16.43765101]
[1720863978194,142.06609408,140.31,140.3,14.29265101]
[1720863978501,142.06609408,140.31,140.3,10.00265101]
[1720863978674,142.06609408,140.31,140.3,7.85765101]
[1720863978875,142.06609408,140.31,140.3,5.71265101]
[1720863979077,142.06609408,140.31,140.3,3.06685101]
[1720863979278,142.06609408,140.31,140.3,0.92105101]
[1720863979479,10.0,140.22,140.19,22.1148]
[1720863979793,10.0,140.24,140.19,22.1148]
[1720863979998,45.0,140.23,140.19,22.1148]
[1720863980391,10.0,140.24,140.19,22.1148]
[1720863980589,10.0,140.24,140.2,15.0]
[1720863980799,10.0,140.26,140.2,15.0]
[1720863981676,10.0,140.24,140.2,15.0]
[1720863985271,10.0,140.27,140.2,15.0]
[1720863985470,10.0,140.25,140.2,15.0]
[1720863986505,45.0,140.26,140.2,15.0]
[1720863987206,10.0,140.25,140.2,15.0]
[1720863987773,10.0,140.25,140.22,15.0]
[1720863989309,45.0,140.26,140.22,15.0]
[1720863990196,10.0,140.27,140.23,22.0296]
[1720863992015,10.0,140.25,140.23,22.0296]
[1720863995112,45.0,140.24,140.2,15.0]
[1720863996530,10.0,140.23,140.18,15.0]
[1720863996842,45.0,140.22,140.18,15.0]
[1720863997331,45.0,140.22,140.16,15.0]
[1720863998016,45.0,140.22,140.17,22.0296]
[1720864000035,10.0,140.2,140.17,22.0296]
[1720864010429,10.0,140.2,140.17,6.3517]
[1720864016245,10.0,140.2,140.15,6.5229]
[1720864016430,10.0,140.18,140.15,6.5229]
[1720864024650,10.0,140.21,140.15,21.5229]
[1720864026155,2.79983493,140.22,140.17,15.0]
[1720864026358,10.0,140.23,140.18,16.5651]
[1720864027060,10.0,140.21,140.18,16.5651]
[1720864027360,10.0,140.21,140.15,38.088]
[1720864027949,45.0,140.2,140.15,38.088]
[1720864028579,10.0,140.21,140.15,38.088]
[1720864029071,10.0,140.18,140.15,23.088]
[1720864030167,10.0,140.18,140.13,15.0]
[1720864030557,10.0,140.18,140.15,15.0]
[1720864030753,10.0,140.18,140.13,15.0]
[1720864034967,10.0,140.18,140.15,15.0]
[1720864035861,10.0,140.18,140.12,22.51332353]
[1720864036979,10.0,140.18,140.12,21.0861]
[1720864037161,10.0,140.16,140.12,21.0861]
[1720864037365,10.0,140.16,140.12,6.0861]
[1720864037873,10.0,140.14,140.09,15.0]
[1720864038775,10.0,140.16,140.09,15.0]
[1720864038979,45.0,140.15,140.09,15.0]
[1720864040356,10.0,140.18,140.11,15.0]
[1720864041477,10.0,140.18,140.11,16.42723534]
[1720864041673,12.84763611,140.2,140.12,22.6512]
[1720864041877,12.84763611,140.2,140.14,15.0]
[1720864042063,10.0,140.2,140.14,15.0]
[1720864042379,10.0,140.2,140.13,1.42623452]
[1720864042576,10.0,140.2,140.14,15.0]
[1720864045058,10.0,140.2,140.12,37.6512]
[1720864046384,10.0,140.18,140.12,37.6512]
[1720864050075,10.0,140.18,140.12,42.6469]
[1720864050469,10.0,140.18,140.12,37.6512]
[1720864055575,10.0,140.18,140.13,4.9951]
[1720864055777,7.44623663,140.22,140.17,15.0]
[1720864055981,10.0,140.25,140.19,15.0]
[1720864056499,10.0,140.25,140.17,21.42041691]
[1720864057001,10.0,140.25,140.19,15.0]
[1720864057501,45.0,140.24,140.19,15.0]
[1720864061003,45.0,140.24,140.19,21.4245]
[1720864063289,45.0,140.24,140.21,15.0]
[1720864065801,10.0,140.25,140.21,15.0]
[1720864066003,2.89070635,140.26,140.21,15.0]
[1720864066303,12.80235285,140.27,140.21,15.0]
[1720864066688,10.0,140.27,140.21,15.0]
[1720864068613,10.0,140.23,140.16,15.0]
[1720864069514,45.0,140.22,140.16,15.0]